Cogmind - Beta 16 @@@ ROGUE MODE // 2025.11.15 @ 14:09:21 Player: ChromeKnight Result: Destroyed by MAIN.C with Omega Cannon Performance ------------- Evolutions (9) 4500 Regions Visited (21) 4200 Robots Destroyed (267) 1335 Value Destroyed (18266) 18266 Prototype IDs (52) 1040 Alien Tech Used (9) 1800 Bonus (17267) 17267 TOTAL SCORE: 48408 Bonus ------- High Alert Combat Kills 2876 Follower Combat Kills 791 Forged Quantum Companion 2000 Registered with UFD 300 Met Optimus in HQ 500 Met Zhirov 300 Destroyed MAIN.C Guards 500 Met MAIN.C 5000 Destroyed MAIN.C Shell 5000 Cogmind --------- Core Integrity 0/1600 Matter 295/300 Energy 100/100 System Corruption 45% Temperature Cool (0) Movement Core (50) Location -1/Command Parts ------- > --- POWER (3) -------- (None) > --- PROPULSION (8) --- (None) > --- UTILITY (12) ----- Advanced Melee Analysis Suite Core Analyzer Graphene Brace > --- WEAPON (2) ------- Superquantum Companion > --- INVENTORY (5) ---- Biometal Leg Advanced Force Field High-powered Transdimensional Reconstructor Peak State ------------ > --- POWER ------------ Heavy Antimatter Reactor Heavy Antimatter Reactor Quantum Reactor > --- PROPULSION ------- Thunder Leg Centrium Leg Centrium Leg Heavy Shield Leg Myomer Exoskeleton > --- UTILITY ---------- High-capacity Storage Unit Advanced Melee Analysis Suite Core Analyzer Advanced Phase Shifter Improved Power Shielding Layered Heavy Armor Plating Centrium Heavy Armor Plating Graphene Brace Improved Focal Shield AEGIS Remote Shield > --- WEAPON ----------- Sigix Terminator > --- INVENTORY -------- Quantum Reactor Myomer Leg Biometal Leg Biometal Leg Biometal Leg Centrium Leg Heavy Shield Leg Experimental Energy Well Layered Heavy Armor Plating Layered Heavy Armor Plating Centrium Light Armor Plating Centrium Light Armor Plating Centrium Light Armor Plating Advanced Force Field High-powered Transdimensional Reconstructor Superquantum Companion [Rating: 225] Favorites ----------- Power Heavy Antimatter Reactor Engine Angular Momentum Engine Power Core Fusion Compressor Reactor Heavy Antimatter Reactor Propulsion Carbon-fiber Leg Treads Light Treads Leg Carbon-fiber Leg Hover Unit Combat Airjet Flight Unit Diametric Drive Utility Advanced Melee Analysis Suite Device Improved Force Field Storage High-capacity Storage Unit Processor Advanced Melee Analysis Suite Hackware Improved System Shield Protection Improved Weapon Shielding Artifact Phase Armor Weapon Companion Sword Energy Gun Medium Laser Energy Cannon Cooled Nova Cannon Ballistic Gun Assault Rifle Ballistic Cannon Hypercooled Linear Accelerator Launcher Proton Missile Launcher Special Weapon Improved Plasma Cutter Slashing Weapon Companion Sword Build | -11 -10 -10 -10 -8 -6 -6 -5 -5 -5 -4 -4 -4 -4 -3 -3 -3 -3 -2 -2 -1 -1 ------- Run | Yrd Mat Min Sub Scr Fac Ext Fac Upp Upp Fac Upp Upp Zhi Pro Res Qua Frg Res Tes Acc Com Slots Evolved 18 | . . . . . 8 . 2 . . 2 . . . . 2 . . 2 . 2 . Power 2 | . . . . . 1 . . . . . . . . . . . . . . 1 . Propulsion 6 | . . . . . 3 . . . . . . . . . . . . 2 . 1 . Utility 10 | . . . . . 4 . 2 . . 2 . . . . 2 . . . . . . Weapon . | . . . . . . . . . . . . . . . . . . . . . . Parts Attached 212 | 6 3 . . 8 10 24 4 6 . 4 2 5 6 1 24 31 16 10 17 7 28 Power 27 | 1 1 . . 1 . 4 . 2 . . . 1 1 . 3 5 . 1 2 1 4 Engine 9 | 1 1 . . 1 . 4 . 2 . . . . . . . . . . . . . Core 1 | . . . . . . . . . . . . . . . . 1 . . . . . Reactor 17 | . . . . . . . . . . . . 1 1 . 3 4 . 1 2 1 4 Propulsion 61 | 2 . . . 2 2 10 . 1 . . 1 1 . . 11 8 3 3 4 2 11 Treads 2 | 2 . . . . . . . . . . . . . . . . . . . . . Leg 51 | . . . . . . 7 . 1 . . 1 1 . . 11 7 3 3 4 2 11 Wheel . | . . . . . . . . . . . . . . . . . . . . . . Hover 7 | . . . . 2 2 3 . . . . . . . . . . . . . . . Flight 1 | . . . . . . . . . . . . . . . . 1 . . . . . Utility 107 | 1 2 . . 4 8 8 4 3 . 4 . 3 5 1 10 14 10 6 9 2 13 Device 42 | . 1 . . 1 2 1 1 2 . 3 . 1 2 . 4 8 4 3 5 . 4 Storage 7 | 1 1 . . 1 . . . . . . . . 1 . 1 . . . 2 . . Processor 19 | . . . . 1 3 2 2 . . 1 . 2 . . 3 1 1 2 . . 1 Hackware 3 | . . . . . . . 1 . . . . . 1 . . . . 1 . . . Protection 35 | . . . . 1 3 5 . 1 . . . . 1 1 2 4 5 . 2 2 8 Artifact 1 | . . . . . . . . . . . . . . . . 1 . . . . . Weapon 17 | 2 . . . 1 . 2 . . . . 1 . . . . 4 3 . 2 2 . Energy Gun 2 | 1 . . . . . . . . . . . . . . . . 1 . . . . Energy Cannon 1 | . . . . . . . . . . . . . . . . . . . 1 . . Ballistic Gun 1 | 1 . . . . . . . . . . . . . . . . . . . . . Ballistic Cannon 3 | . . . . . . 1 . . . . . . . . . 1 . . 1 . . Launcher 6 | . . . . . . 1 . . . . 1 . . . . 1 1 . . 2 . Special Weapon 1 | . . . . . . . . . . . . . . . . 1 . . . . . Impact Weapon . | . . . . . . . . . . . . . . . . . . . . . . Slashing Weapon 3 | . . . . 1 . . . . . . . . . . . 1 1 . . . . Piercing Weapon . | . . . . . . . . . . . . . . . . . . . . . . Special Melee Weapon . | . . . . . . . . . . . . . . . . . . . . . . Unidentified Prototypes 44 | . . . . 1 . . . . . . . . 4 . 2 15 8 . 10 2 2 Parts Lost 86 | . . . . . . 8 1 . 2 . 1 3 . . 14 8 7 1 4 2 35 Power 11 | . . . . . . . . . . . . 1 . . 2 . . . 1 . 7 Propulsion 27 | . . . . . . 5 . . . . . 1 . . 4 4 . 1 . . 12 Utility 46 | . . . . . . 3 1 . 2 . 1 1 . . 7 4 7 . 2 2 16 Weapon 2 | . . . . . . . . . . . . . . . 1 . . . 1 . . Highest Loss Streak 22 | . . . . . . 4 1 . 2 . 1 3 . . 9 3 2 1 2 2 22 To Critical Strikes . | . . . . . . . . . . . . . . . . . . . . . . Average Backups 14 | . 4 12 14 11 12 11 13 12 12 11 12 12 13 15 14 17 16 13 16 16 14 Power 1 | . 1 3 4 2 . . . . . . 1 . . . 1 1 1 1 . . 1 Propulsion 3 | . . . 1 . 1 1 4 5 5 5 5 4 5 5 5 5 3 3 6 5 5 Utility 5 | . 2 6 6 5 9 7 7 6 5 3 5 4 6 6 5 5 4 3 4 6 5 Weapon 2 | . 1 2 3 2 1 1 . . 1 1 . 1 1 1 . 2 4 4 3 2 1 Tool/Special . | . . . . . . . . . . . . . . . . . . . . . . Unused Backups 48 | . . . . 11 6 2 2 1 . 2 5 . . 1 4 7 2 . 1 . 4 Power 3 | . . . . 2 . . . . . . . . . . . . 1 . . . . Propulsion 7 | . . . . . 2 . 1 . . . . . . . 1 1 1 . . . 1 Utility 29 | . . . . 4 4 1 1 1 . 2 5 . . 1 3 5 . . . . 2 Weapon 8 | . . . . 5 . 1 . . . . . . . . . 1 . . 1 . . Tool/Special 1 | . . . . . . . . . . . . . . . . . . . . . 1 Average Slot Usage (%) 85 | . 88 100 100 88 73 78 93 92 86 83 92 87 88 89 89 90 84 89 75 73 74 Engine 5 | . 14 14 14 13 6 6 11 11 11 9 10 7 3 . . . . . . . . Reactor 4 | . . . . . . . . . . . . 2 7 10 8 8 9 8 8 10 11 Treads 3 | . 28 28 28 14 . . . . . . . . . . . . . . . . . Leg 16 | . . . . . . 9 29 29 29 25 26 25 26 26 22 22 19 25 17 20 20 Hover 3 | . . . . 11 22 14 . . . . . . . . . . . . . . . Device 15 | . 2 14 14 11 8 4 9 5 10 20 20 15 14 15 18 17 21 21 19 16 16 Storage 6 | . 14 14 14 12 6 6 5 5 5 5 5 5 5 5 4 4 4 4 4 4 3 Processor 11 | . . . . 1 12 13 21 20 10 6 10 13 15 15 17 23 17 8 8 8 7 Protection 6 | . . . . . 8 15 6 9 11 10 10 10 9 10 8 5 4 7 7 9 10 Energy Gun 1 | . 14 14 14 7 . . . . . . . . . . . . . . . . . Ballistic Gun 1 | . 14 14 14 7 . . . . . . . . . . . . . . . . . Slashing Weapon 4 | . . . . 5 6 6 5 5 5 5 5 5 5 5 4 3 4 4 4 4 3 Peak Build Rating 225 | 6 10 11 11 23 61 67 72 72 72 84 91 88 96 95 134 160 183 183 216 214 225 Average Rating 106 | 4 6 10 11 16 49 57 69 67 70 78 87 83 90 94 120 138 155 177 200 203 203 On Entrance 82 | . 6 10 11 11 23 61 57 66 72 64 83 81 88 95 95 119 147 149 183 198 197 Avg Prop Armor Cover (%) 9 | . . . . . . 7 . . . . . . . . . . . . 10 . . Naked Turns 13 | . . . . 13 . . . . . . . . . . . . . . . . . Heaviest Build 181 | 14 53 53 53 53 42 61 57 75 73 78 83 74 80 80 119 123 141 131 152 165 181 Greatest Support 238 | 40 40 40 40 40 47 85 80 88 88 88 93 93 93 93 140 134 141 189 215 228 238 Greatest Overweight (x) 2 | . 1 1 1 1 1 2 . . . . . . . . 1 1 . . 1 . 1 Average Overweight (x) . | . . 1 1 . . . . . . . . . . . . . . . . . . Largest Inventory Capacity 20 | 8 20 20 20 20 15 15 15 15 15 15 15 15 15 15 20 20 20 20 20 20 20 Average Capacity 17 | 7 17 20 20 16 15 15 15 15 15 15 15 15 15 15 16 20 20 20 20 20 19 Most Carried 20 | . 11 13 16 17 15 15 15 15 15 15 15 15 15 15 16 20 20 20 20 20 20 Average Carried 15 | . 4 12 14 12 14 13 14 14 15 14 14 13 14 14 14 18 18 15 19 19 17 Final Capacity 20 | 8 20 20 20 15 15 15 15 15 15 15 15 15 15 15 20 20 20 20 20 20 5 Final Carried 20 | . 11 13 16 11 15 14 14 15 15 15 15 14 15 15 15 20 15 20 20 18 3 Class Distribution -------------------- 49% | Mutant 41% | Scavenger-Mutant 6% | Derelict-Mutant Dominant Class ---------------- Mutant | -10/Materials Mutant | -10/Mines Mutant | -10/Subcaves Mutant | -8/Scraptown Mutant | -6/Factory Mutant | -6/Extension Scavenger-Mutant | -5/Factory Scavenger-Mutant | -5/Upper Caves Scavenger-Mutant | -5/Upper Caves Scavenger-Mutant | -4/Factory Derelict-Mutant | -4/Upper Caves Mutant | -4/Upper Caves Mutant | -4/Zhirov Mutant | -3/Proximity Caves Derelict-Mutant | -3/Research Mutant | -3/Quarantine Scavenger-Mutant | -3/Protoforge Scavenger-Mutant | -2/Research Scavenger-Mutant | -2/Testing Scavenger-Mutant | -1/Access Mutant | -1/Command Resources | -11 -10 -10 -10 -8 -6 -6 -5 -5 -5 -4 -4 -4 -4 -3 -3 -3 -3 -2 -2 -1 -1 ----------- Run | Yrd Mat Min Sub Scr Fac Ext Fac Upp Upp Fac Upp Upp Zhi Pro Res Qua Frg Res Tes Acc Com Matter Collected 3917 | 198 . . 122 60 190 409 70 95 . 50 128 55 100 26 310 772 398 241 245 113 335 Remotely . | . . . . . . . . . . . . . . . . . . . . . . Salvage Created 17690 | . . . 40 . 313 1661 96 . 25 116 694 329 387 113 1382 1318 3139 1430 2279 1138 3230 Parts 827 | . . . 2 . 14 74 4 . 2 10 22 25 2 6 85 96 155 59 97 55 119 Haulers Intercepted 5 | . . . . . 1 . . . . . . . . . 2 . . 1 . 1 . Recyclers Shooed 2 | . . . . . . 1 . . . . . . . . 1 . . . . . . Parts Field Recycled . | . . . . . . . . . . . . . . . . . . . . . . Retrieved Matter . | . . . . . . . . . . . . . . . . . . . . . . Parts Self-Destructed 67 | . . . 9 . . . . . 3 . 13 35 1 6 . . . . . . . Prevented 9 | . . . . . . . . . 5 . 4 . . . . . . . . . . Parts Restored . | . . . . . . . . . . . . . . . . . . . . . . Kills | -11 -10 -10 -10 -8 -6 -6 -5 -5 -5 -4 -4 -4 -4 -3 -3 -3 -3 -2 -2 -1 -1 ------- Run | Yrd Mat Min Sub Scr Fac Ext Fac Upp Upp Fac Upp Upp Zhi Pro Res Qua Frg Res Tes Acc Com Combat Hostiles Destroyed 226 | . . . 1 . 3 20 2 . 1 2 13 7 . 1 18 18 43 15 27 14 41 Melee 183 | . . . . . 3 20 2 . 1 2 6 7 . 1 18 15 34 10 22 8 34 Guns 2 | . . . 1 . . . . . . . . . . . . . . . . . 1 Cannons 10 | . . . . . . . . . . . . . . . . 1 2 3 2 1 1 AOE 14 | . . . . . . . . . . . 7 . . . . . . . . 5 2 Classes Destroyed 27 | . . . 1 . 3 6 1 . 1 . . 3 . 1 2 3 3 1 . . 2 Worker 3 | . . . . . . . . . . . . . . . . . . 1 2 . . Builder 6 | . . . . . . . . . . . . . . . . 3 2 . . 1 . Tunneler 1 | . . . . . . . . . . . . . . . 1 . . . . . . Hauler 5 | . . . . . 1 . . . . . . . . . 2 . . 1 . 1 . Recycler 6 | . . . . . . 3 . . . . . . . . . . . . . 2 1 Minesweeper 1 | . . . . . . . . . . . . . . 1 . . . . . . . Operator 7 | . . . . . 1 2 . . . . . . . . . . . 1 2 1 . Drone 1 | . . . . . . . . . . . . . . . . . 1 . . . . Watcher 12 | . . . . . . . . . . . . . . . . 2 2 1 3 . 4 Swarmer 31 | . . . . . . . . . 1 . 9 4 . . 2 . 3 . . 6 6 Saboteur 1 | . . . . . . . . . . . . . . . . . . . . . 1 Grunt 56 | . . . . . 3 11 1 . . . 3 . . . . 3 7 9 7 2 10 Brawler 3 | . . . . . . 1 . . . . . . . . . . 1 . . . 1 Duelist 2 | . . . . . . 1 . . . . . . . . . . . . . . 1 Protector 1 | . . . . . . . . . . . . . . . . . . . . . 1 Sentry 16 | . . . . . . 5 . . . . 1 . . 1 1 . 6 1 . . 1 Demolisher 1 | . . . . . . . . . . . . . . . . . . 1 . . . Specialist 2 | . . . . . . . . . . . . . . . 2 . . . . . . Hunter 16 | . . . . . . 1 . . . . . . . . 2 1 . . 5 2 5 Programmer 72 | . . . . . . . 1 . . 2 . 2 . . 11 11 14 3 14 4 10 Heavy 1 | . . . . . . . . . . . . . . . . . . 1 . . . Behemoth 1 | . . . . . . 1 . . . . . . . . . . . . . . . Quarantine Guard 2 | . . . . . . . . . . . . . . . . 2 . . . . . M Guard 2 | . . . . . . . . . . . . . . . . . . . . . 2 Hotshot 6 | . . . . . . . . . . . . . . . . . 6 . . . . Decapitator 4 | . . . . . . . . . . . . . . . . . 4 . . . . Overlord 1 | . . . . . . . . . . . . . . . . . 1 . . . . Combat Programmer 2 | . . . . . . . . . . . . . . . . . . . . . 2 Alpha 7 1 | . . . . . . . . . . . . . . . . 1 . . . . . Protovariant Y 1 | . . . . . . . . . . . . . . . . . . . 1 . . Subdweller 1 | . . . 1 . . . . . . . . . . . . . . . . . . Ranger 1 | . . . . . . . . . . . . 1 . . . . . . . . . Decomposer 1 | . . . . . . . . . . . . 1 . . . . . . . . . Packrat 1 | . . . . . . . . . . . 1 . . . . . . . . . . Samaritan 1 | . . . . . . . . . . . . 1 . . . . . . . . . Best Kill Streak 11 | . . . 1 . 2 4 1 . 1 2 6 4 . 1 8 4 6 5 5 11 8 Combat Bots Only 8 | . . . 1 . 2 4 1 . 1 2 6 4 . 1 8 3 6 5 5 6 7 Max Kills in Single Turn 5 | . . . 1 . 1 1 1 . 1 1 3 1 . 1 1 2 2 1 1 5 2 Gunslinging . | . . . . . . . . . . . . . . . . . . . . . . Exploded 5 | . . . . . . . . . . . 3 . . . . . . . . 5 2 Melee 2 | . . . . . 1 1 1 . 1 1 1 1 . 1 1 2 1 1 1 1 2 Uniques/NPCs Destroyed 1 | . . . . . . . . . . . . . . . . . . . . . 1 MAIN.C Shell (-1/Command) Combat | -11 -10 -10 -10 -8 -6 -6 -5 -5 -5 -4 -4 -4 -4 -3 -3 -3 -3 -2 -2 -1 -1 -------- Run | Yrd Mat Min Sub Scr Fac Ext Fac Upp Upp Fac Upp Upp Zhi Pro Res Qua Frg Res Tes Acc Com Hostile Shots Fired 2423 | . . . 5 . 10 202 20 . 20 12 63 53 . 10 221 217 197 97 187 204 905 Missed 861 | . . . 2 . 2 61 10 . 11 7 23 13 . 4 66 69 58 58 88 116 273 Deflected 66 | . . . . . . . . . . . . . . . . 1 9 5 7 5 39 Hits 1562 | . . . 3 . 8 141 10 . 9 5 40 40 . 6 155 148 139 39 99 88 632 Melee 26 | . . . . . . 4 . . . . . . . . . . 14 . . . 8 Projectile 1536 | . . . 3 . 8 137 10 . 9 5 40 40 . 6 155 148 125 39 99 88 624 AOE 18 | . . . . . . . . . . . . . . . . . 1 5 . . 12 Critical Strikes 96 | . . . . . . 4 . . 1 . 3 4 . . 15 9 17 4 4 2 33 Actively Blocked 63 | . . . . . . . . . . . . . . . 1 3 17 4 4 1 33 Part Disruptions 12 | . . . . . . . . . . . . . . . 1 1 . . 2 . 8 Damage Taken 28753 | . . . 43 . 168 2436 263 . 332 75 627 476 6 74 2872 2988 3088 813 1268 1195 12029 Core 3425 | . . . . . 73 384 34 . 9 14 6 33 6 . 398 341 377 26 68 71 1585 Absorbed by Shields 13256 | . . . 16 . . . . . 58 26 230 175 . 76 846 851 1844 554 896 522 7162 Redirected to Shielding 731 | . . . . . . 48 . . . . 41 3 . . 159 . 177 . . 114 189 Ignored by Resistances 1400 | . . . . . . . 7 . . . . . . . . . . . 51 24 1318 Regen/Repaired (Parts) 254 | . . . . 78 . . . . . 176 . . . . . . . . . . . Core Remaining (%) 76 | 100 . . . 100 . 46 . . 95 . . . . 94 . . 4 . 93 . . Volleys Fired 41 | . . 2 8 . . 13 . . . . 6 . . . . 1 8 . 1 1 1 Largest 2 | . . 2 2 . . 1 . . . . 1 . . . . 1 1 . 1 1 1 Hottest 70 | . . 70 70 . . 44 . . . . 39 . . . . 10 10 . 50 52 . Shots Fired 53 | . . 4 16 . . 14 . . . . 6 . . . . 2 8 . 1 1 1 Gun 20 | . . 4 16 . . . . . . . . . . . . . . . . . . Cannon 22 | . . . . . . 12 . . . . . . . . . 2 7 . 1 . . Launcher 11 | . . . . . . 2 . . . . 6 . . . . . 1 . . 1 1 Special . | . . . . . . . . . . . . . . . . . . . . . . Kinetic 31 | . . 2 8 . . 12 . . . . . . . . . 2 7 . . . . Thermal 12 | . . 2 8 . . . . . . . . . . . . . . . 1 . 1 Explosive 2 | . . . . . . . . . . . . . . . . . 1 . . 1 . Electromagnetic 8 | . . . . . . 2 . . . . 6 . . . . . . . . . . Robot Hit Streak 5 | . . 1 5 . . . . . . . 2 . . . . . . . . . . Robot Miss Streak 2 | . . 1 2 . . 1 . . . . 1 . . . . . . . . . . Penetration Max . | . . . . . . . . . . . . . . . . . . . . . . Secondary Targets . | . . . . . . . . . . . . . . . . . . . . . . Autonomous 52 | . . . . . . . . . . . . . . . . 4 6 5 6 6 25 Shots Hit Robots 789 | . . 2 11 . 17 77 8 . 1 6 26 19 7 5 72 81 111 44 77 23 202 Core Hits 353 | . . . 3 . 7 31 4 . . 3 18 7 2 2 34 33 55 18 31 15 90 Critical Kills . | . . . . . . . . . . . . . . . . . . . . . . Critical Parts Destroyed . | . . . . . . . . . . . . . . . . . . . . . . Critical Strikes 22 | . . . . . . 2 . . . . . . . . 6 4 . 4 . 2 4 Melee Attacks 1041 | . . . . . 30 106 17 2 3 17 31 23 7 5 80 138 143 52 104 29 254 Impact . | . . . . . . . . . . . . . . . . . . . . . . Slashing 1041 | . . . . . 30 106 17 2 3 17 31 23 7 5 80 138 143 52 104 29 254 Piercing . | . . . . . . . . . . . . . . . . . . . . . . Sneak Attacks 46 | . . . . . 3 6 1 . . . 2 2 . 1 5 4 4 4 4 7 3 Combat Hostiles 5 | . . . . . . . . . . . 1 . . . . . 1 1 1 . 1 Follow-up Attacks 35 | . . . . . . 4 . . . . 2 . 1 . 2 2 5 1 1 . 17 Damage Inflicted 64678 | . . 25 127 . 876 3525 386 . 48 247 1777 908 623 282 3487 5304 8423 3724 6873 3539 24504 Guns 152 | . . 25 127 . . . . . . . . . . . . . . . . . . Cannons 4578 | . . . . . . . . . . . . . . . . 363 538 425 543 481 2228 Explosions 8609 | . . . . . . 34 . . . . 735 . . . . . 34 . . 642 7164 Melee 51253 | . . . . . 876 3491 386 . 48 247 1042 908 623 282 3487 4941 7851 3299 6330 2416 15026 Ramming 86 | . . . . . . . . . . . . . . . . . . . . . 86 Kinetic 66 | . . . 66 . . . . . . . . . . . . . . . . . . Thermal 7543 | . . 25 61 . . . . . . . 293 . . . . . . . . . 7164 Explosive 676 | . . . . . . . . . . . . . . . . . 34 . . 642 . Electromagnetic 476 | . . . . . . 34 . . . . 442 . . . . . . . . . . Impact . | . . . . . . . . . . . . . . . . . . . . . . Slashing 51253 | . . . . . 876 3491 386 . 48 247 1042 908 623 282 3487 4941 7851 3299 6330 2416 15026 Piercing . | . . . . . . . . . . . . . . . . . . . . . . Phasic 4578 | . . . . . . . . . . . . . . . . 363 538 425 543 481 2228 Highest Corruption 46 | . . . . . . 7 . . 4 1 1 2 2 2 25 34 46 . 11 4 45 Average Corruption 16 | . . . . . . 4 . . 4 1 1 1 2 2 15 30 37 . 4 1 18 Corruption Purged 4 | . . . . . . . . . . . . . . . . . . . . . 4 Corruption Blocked 1 | . . . . . . . . . . . . . . . . 1 . . . . . Effects 346 | . . . . . . 23 . . 1 . 9 7 1 5 15 140 74 . 23 5 43 Message Errors 84 | . . . . . . 6 . . . . 2 . . 1 1 37 16 . 4 1 16 Matter Fused 72 | . . . . . . 3 . . . . 5 1 . 3 5 25 18 . 5 2 5 Heat Flow Errors 34 | . . . . . . 3 . . . . 1 1 . . 1 16 5 . 4 1 2 Energy Discharges 45 | . . . . . . 4 . . . . . 1 . 1 1 19 14 . 1 . 4 Parts Rejected 7 | . . . . . . . . . . . . . . . . 1 3 . . . 3 Parts Fused 1 | . . . . . . . . . . . . . . . . . 1 . . . . Data Loss (minor) 52 | . . . . . . 4 . . . . 1 2 . . 3 24 6 . 6 . 6 Data Loss (major) 24 | . . . . . . 1 . . 1 . . 1 1 . 1 8 5 . 2 1 3 Misfires 3 | . . . . . . 1 . . . . . . . . . 1 1 . . . . Alerts 8 | . . . . . . 1 . . . . . 1 . . . 5 . . 1 . . Misdirections 15 | . . . . . . . . . . . . . . . 3 4 4 . . . 4 Weapon Failures 1 | . . . . . . . . . . . . . . . . . 1 . . . . Overload Shots . | . . . . . . . . . . . . . . . . . . . . . . Overflow Damage 5316 | . . . . . 41 332 . . 23 . 141 199 345 55 265 257 495 301 1009 576 1277 Projectiles 480 | . . . . . . . . . . . . . . . . 49 46 . 149 21 215 Explosions 378 | . . . . . . . . . . . 28 . . . . . . . . 119 231 Melee 4458 | . . . . . 41 332 . . 23 . 113 199 345 55 265 208 449 301 860 436 831 Knockbacks 1 | . . . . . . . . . . . . . . . . . . . . . 1 Impact 1 | . . . . . . . . . . . . . . . . . . . . . 1 Kinetic . | . . . . . . . . . . . . . . . . . . . . . . Secondary . | . . . . . . . . . . . . . . . . . . . . . . Self-Inflicted Damage 190 | . . . . . . 19 . . . . 134 . . . . . . . . 37 . Shots 10 | . . . . . . 1 . . . . 8 . . . . . . . . 1 . Rammed . | . . . . . . . . . . . . . . . . . . . . . . Targets Rammed 1 | . . . . . . . . . . . . . . . . . . . . . 1 Kicked 1 | . . . . . . . . . . . . . . . . . . . . . 1 Crushed . | . . . . . . . . . . . . . . . . . . . . . . Highest Temperature 429 | . . 12 . . . 215 . . . . 189 107 . . 81 429 140 . 205 238 243 Average Temperature 116 | . . 8 . . . 57 . . . . 61 56 . . 60 135 82 . 100 127 82 Received Heat Transfer 2085 | . . . . . 72 579 51 . 18 . 77 . . 4 12 226 222 36 20 8 760 Effects 6 | . . . . . . . . . . . . . . . . 6 . . . . . Energy Bleed 3 | . . . . . . . . . . . . . . . . 3 . . . . . Interference 3 | . . . . . . . . . . . . . . . . 3 . . . . . Siege Activations . | . . . . . . . . . . . . . . . . . . . . . . Martial Activations . | . . . . . . . . . . . . . . . . . . . . . . Shielding Activations 1 | . . . . . . . . . . . . . . . . . . . . . 1 Total Turns 36 | . . . . . . . . . . . . . . . . . . . . . 36 Longest Duration 36 | . . . . . . . . . . . . . . . . . . . . . 36 Robots Disrupted 8 | . . . . . . 2 . . . . . . . . 1 . 2 . . 1 2 Combat Hostiles 8 | . . . . . . 2 . . . . . . . . 1 . 2 . . 1 2 Robots Corrupted 1 | . . . . . . . . . . . . . . . . . . . . . 1 Combat Hostiles . | . . . . . . . . . . . . . . . . . . . . . . Parts Fried 3 | . . . . . . . . . . . 1 . . . . . . . . . 2 Impact Corruptions 2 | . . . . . . . . . . . . . . . . . . . . . 2 Robots Melted . | . . . . . . . . . . . . . . . . . . . . . . Combat Hostiles . | . . . . . . . . . . . . . . . . . . . . . . Parts Melted 1 | . . . . . . . . . . . . . . . 1 . . . . . . Heat Transferred 865 | . . 74 185 . . . . . . . 350 . . . . . . . . . 256 Parts Sabotaged . | . . . . . . . . . . . . . . . . . . . . . . Parts Stolen . | . . . . . . . . . . . . . . . . . . . . . . Parts Stripped 102 | . . . . . . . . . . . . . . . . 11 24 18 21 . 28 Power Chain Reactions 3 | . . . . . . . . . . . 3 . . . . . . . . . . Alert | -11 -10 -10 -10 -8 -6 -6 -5 -5 -5 -4 -4 -4 -4 -3 -3 -3 -3 -2 -2 -1 -1 ------- Run | Yrd Mat Min Sub Scr Fac Ext Fac Upp Upp Fac Upp Upp Zhi Pro Res Qua Frg Res Tes Acc Com Maximum Alert Level 5 | . . . . . . . . . . . . . . . 1 1 3 2 1 2 5 Low Security (%) 54 | 100 100 100 . . 100 100 100 . . 100 . . . . 50 47 29 . 55 24 4 Level 1 30 | . . . . . . . . . . . . . . . 49 52 36 . 44 57 46 Level 2 9 | . . . . . . . . . . . . . . . . . 26 99 . 18 7 Level 3 . | . . . . . . . . . . . . . . . . . 8 . . . . Level 4 . | . . . . . . . . . . . . . . . . . . . . . . Level 5 4 | . . . . . . . . . . . . . . . . . . . . . 40 High Security . | . . . . . . . . . . . . . . . . . . . . . . Max Security . | . . . . . . . . . . . . . . . . . . . . . . Peak Influence 2645 | . . . . . 33 194 88 . . 40 . . . . 377 285 764 659 390 423 2645 Initial 422 | . . . . . . . 88 . . 40 . . . . 300 195 146 422 337 230 254 Average 264 | . . . . . 4 76 13 . . 8 . . . . 217 175 354 513 202 252 1086 Influence Increases 9706 | . . . . . 116 908 79 . 95 86 415 180 10 40 855 840 1197 606 794 426 3059 Destroy 0b10 Robot/C 4800 | . . . . . 60 560 40 . 20 40 260 140 . 20 360 360 840 340 540 280 940 Destroy 0b10 Robot/NC 245 | . . . . . 10 25 5 . . . 5 5 10 5 15 25 25 20 35 25 35 Destroy Leader 824 | . . . . . 2 80 2 . . 10 30 20 . . 82 74 154 84 96 52 138 Allied During Kill 203 | . . . . . . 73 1 . . . . . . . . . 5 57 . . 67 Successful Hack 56 | . . . . . 6 30 . . . 18 . . . . 2 . . . . . . Disable Machine 495 | . . . . . 30 60 15 . . . . . . . . 225 30 . 90 . 45 Destroy Structure 2048 | . . . . . 8 5 16 . . 18 . . . . 6 66 68 15 18 69 1759 Advance Influence 300 | . . . . . . . . . . . . . . . 300 . . . . . . Partial Spotted 90 | . . . . . . . . . . . . . . . 15 60 . . 15 . . Lose Combat Pursuer 645 | . . . . . . 75 . . 75 . 120 15 . 15 75 30 75 90 . . 75 Influence Decreases 7273 | . . . . . 116 727 260 . 30 151 323 183 99 40 508 926 707 757 1009 413 1024 Entered New Map 1384 | . . . . . . . 93 . . 25 . 19 89 . . 152 115 329 263 155 144 Time Decay 4606 | . . . . . 116 474 167 . 20 126 303 164 10 40 368 694 522 318 556 238 490 Lost Part 773 | . . . . . . 43 . . 10 . 10 . . . 140 80 70 10 40 20 350 Lost Ally 360 | . . . . . . 210 . . . . 10 . . . . . . 100 . . 40 Purge Threat 150 | . . . . . . . . . . . . . . . . . . . 150 . . Squads Dispatched 56 | . 3 . . . 3 5 2 . . 4 . . . . 4 5 8 7 7 2 6 Investigation 10 | . 3 . . . 1 2 . . . 3 . . . . . . . 1 . . . Extermination 25 | . . . . . 1 . 2 . . 1 . . . . 2 4 4 1 5 1 4 Reinforcement 16 | . . . . . 1 3 . . . . . . . . 2 1 3 3 2 1 . Assault 4 | . . . . . . . . . . . . . . . . . 1 1 . . 2 Garrison 1 | . . . . . . . . . . . . . . . . . . 1 . . . Intercept . | . . . . . . . . . . . . . . . . . . . . . . Searches Triggered . | . . . . . . . . . . . . . . . . . . . . . . Construction Impeded 1 | . . . . . . 1 . . . . . . . . . . . . . . . Haulers Reinforced 2 | . . . . . 1 . . . . . . . . . . . . . . 1 . Active Scanning Responses . | . . . . . . . . . . . . . . . . . . . . . . Cargo Convoy Interrupts . | . . . . . . . . . . . . . . . . . . . . . . Stealth | -11 -10 -10 -10 -8 -6 -6 -5 -5 -5 -4 -4 -4 -4 -3 -3 -3 -3 -2 -2 -1 -1 --------- Run | Yrd Mat Min Sub Scr Fac Ext Fac Upp Upp Fac Upp Upp Zhi Pro Res Qua Frg Res Tes Acc Com Distress Signals 13 | . . 1 . . . 1 . . . . . . . . 2 . 3 1 2 1 2 Communications Jammed 88 | . . . . . . . . . . . . . . . 56 4 28 . . . . Distress Signals 80 | . . . . . . . . . . . . . . . 55 4 21 . . . . Times Spotted 382 | . . 3 5 . 8 36 12 . 7 5 19 9 . 4 30 35 61 26 35 23 64 Peak Tracking Total 8 | . 1 2 2 . 2 6 8 . 7 3 6 5 . 2 7 5 5 6 5 8 8 Tactical Retreats 25 | . . . . . . 4 . . 1 . 5 1 . 1 3 1 3 3 . . 3 Traps | -11 -10 -10 -10 -8 -6 -6 -5 -5 -5 -4 -4 -4 -4 -3 -3 -3 -3 -2 -2 -1 -1 ------- Run | Yrd Mat Min Sub Scr Fac Ext Fac Upp Upp Fac Upp Upp Zhi Pro Res Qua Frg Res Tes Acc Com Traps Triggered 15 | . . . . . . 4 2 . . 1 . . . . 1 . 4 . 2 1 . Indirectly . | . . . . . . . . . . . . . . . . . . . . . . Trap Hack Attempts . | . . . . . . . . . . . . . . . . . . . . . . Triggered . | . . . . . . . . . . . . . . . . . . . . . . Disarmed . | . . . . . . . . . . . . . . . . . . . . . . Reprogrammed . | . . . . . . . . . . . . . . . . . . . . . . Reused . | . . . . . . . . . . . . . . . . . . . . . . Traps Extracted . | . . . . . . . . . . . . . . . . . . . . . . Installed . | . . . . . . . . . . . . . . . . . . . . . . Triggered . | . . . . . . . . . . . . . . . . . . . . . . Most Traps Carried 2 | . . . . . . . . 2 2 2 1 1 1 . . . . . . . . Machines | -11 -10 -10 -10 -8 -6 -6 -5 -5 -5 -4 -4 -4 -4 -3 -3 -3 -3 -2 -2 -1 -1 ---------- Run | Yrd Mat Min Sub Scr Fac Ext Fac Upp Upp Fac Upp Upp Zhi Pro Res Qua Frg Res Tes Acc Com Machines Disabled 34 | . . . . . 2 4 1 . . . . . . . . 15 2 . 7 . 3 Max in Single Turn 2 | . . . . . 1 1 1 . . . . . . . . 1 1 . 1 . 2 Garrison Access 3 | . . . . . 2 . . . . . . . . . . . . . . 1 . Machines Repaired . | . . . . . . . . . . . . . . . . . . . . . . Machines Dismantled 1 | . . . . . . . . . . . . . . . . 1 . . . . . Machines Sabotaged . | . . . . . . . . . . . . . . . . . . . . . . Overloaded Fab Kills . | . . . . . . . . . . . . . . . . . . . . . . Hacking | -11 -10 -10 -10 -8 -6 -6 -5 -5 -5 -4 -4 -4 -4 -3 -3 -3 -3 -2 -2 -1 -1 --------- Run | Yrd Mat Min Sub Scr Fac Ext Fac Upp Upp Fac Upp Upp Zhi Pro Res Qua Frg Res Tes Acc Com Machines Accessed 58 | . . . . 4 11 10 4 . . 5 1 1 4 . 5 6 . 2 3 2 . Terminals 29 | . . . . . 4 9 2 . . 1 . . . . 4 5 . 1 2 1 . Fabricators 3 | . . . . . 2 . 1 . . . . . . . . . . . . . . Repair Stations 2 | . . . . . . . 1 . . 1 . . . . . . . . . . . Recycling Units 6 | . . . . . 2 1 . . . 2 . . . . . . . 1 . . . Scanalyzers 3 | . . . . . 1 . . . . . . . . . 1 1 . . . . . Garrison Access 5 | . . . . . 2 . . . . 1 . . . . . . . . 1 1 . Total Hacks 127 | . . . . 25 19 19 6 . . 13 1 4 17 . 7 6 . 3 5 2 . Successful 77 | . . . . 25 9 6 1 . . 7 1 4 17 . 2 . . 2 2 1 . Failed 50 | . . . . . 10 13 5 . . 6 . . . . 5 6 . 1 3 1 . Catastrophic 15 | . . . . . 1 3 2 . . 1 . . . . 1 4 . . 2 1 . Database Lockouts . | . . . . . . . . . . . . . . . . . . . . . . Manual 23 | . . . . . 9 4 2 . . 4 . . . . . 1 . 1 2 . . Terminals 47 | . . . . . 8 18 3 . . 1 . . . . 5 5 . 2 4 1 . Fabricators 5 | . . . . . 4 . 1 . . . . . . . . . . . . . . Repair Stations 8 | . . . . . . . 2 . . 6 . . . . . . . . . . . Recycling Units 9 | . . . . . 3 1 . . . 4 . . . . . . . 1 . . . Scanalyzers 4 | . . . . . 1 . . . . . . . . . 2 1 . . . . . Garrison Access 7 | . . . . . 3 . . . . 2 . . . . . . . . 1 1 . Terminal Hacks 59 | . . . . 25 3 4 1 . . 1 1 4 17 . . . . 1 2 . . Record 28 | . . . . 19 . . . . . . . 4 5 . . . . . . . . Part Schematic 4 | . . . . . . . . . . . . . 4 . . . . . . . . Robot Analysis 9 | . . . . 5 . . . . . . . . 4 . . . . . . . . Prototype ID Bank 4 | . . . . . . . . . . . . . 4 . . . . . . . . Open Door 4 | . . . . 1 . 2 . . . . 1 . . . . . . . . . . Alert Level 1 | . . . . . . . . . . . . . . . . . . 1 . . . Unreport Threat 1 | . . . . . . . . . . . . . . . . . . . 1 . . Locate Traps 2 | . . . . . 1 . . . . 1 . . . . . . . . . . . Zone Layout 6 | . . . . . 2 2 1 . . . . . . . . . . . 1 . . Fabricator Hacks 2 | . . . . . 2 . . . . . . . . . . . . . . . . Network Status 2 | . . . . . 2 . . . . . . . . . . . . . . . . Repair Station Hacks 4 | . . . . . . . . . . 4 . . . . . . . . . . . Scan Component 2 | . . . . . . . . . . 2 . . . . . . . . . . . Repair 2 | . . . . . . . . . . 2 . . . . . . . . . . . Recycling Unit Hacks . | . . . . . . . . . . . . . . . . . . . . . . Scanalyzer 3 | . . . . . 1 . . . . . . . . . 2 . . . . . . Retrieve Study 3 | . . . . . 1 . . . . . . . . . 2 . . . . . . Garrison Access Hacks 3 | . . . . . 2 . . . . . . . . . . . . . . 1 . Seal Access 3 | . . . . . 2 . . . . . . . . . . . . . . 1 . Unauthorized Hacks 6 | . . . . . 1 2 . . . 2 . . . . . . . 1 . . . Terminals 1 | . . . . . . 1 . . . . . . . . . . . . . . . Assimilate 1 | . . . . . . 1 . . . . . . . . . . . . . . . Fabricators . | . . . . . . . . . . . . . . . . . . . . . . Repair Stations . | . . . . . . . . . . . . . . . . . . . . . . Recycling Units 5 | . . . . . 1 1 . . . 2 . . . . . . . 1 . . . Fedlink 4 | . . . . . 1 1 . . . 2 . . . . . . . . . . . Scrapoids 1 | . . . . . . . . . . . . . . . . . . 1 . . . Scanalyzers . | . . . . . . . . . . . . . . . . . . . . . . Garrison Access . | . . . . . . . . . . . . . . . . . . . . . . Data Cores Recovered 3 | . . . . . . . . . . . . . . . . . . 1 1 1 . Used 1 | . . . . . . . . . . . . . . . . . . 1 . . . Hacking Detections 35 | . . . . . 5 8 4 . . 4 . . . . 4 6 . 1 2 1 . Full Trace Events 1 | . . . . . . 1 . . . . . . . . . . . . . . . Feedback Events . | . . . . . . . . . . . . . . . . . . . . . . Feedback Blocked . | . . . . . . . . . . . . . . . . . . . . . . Robot Schematics Acquired . | . . . . . . . . . . . . . . . . . . . . . . Robots Built . | . . . . . . . . . . . . . . . . . . . . . . Authchips . | . . . . . . . . . . . . . . . . . . . . . . Time . | . . . . . . . . . . . . . . . . . . . . . . Total Robot Build Rating . | . . . . . . . . . . . . . . . . . . . . . . Part Schematics Acquired 4 | . . . . . . . . . . . . . 4 . . . . . . . . Parts Built . | . . . . . . . . . . . . . . . . . . . . . . Authchips . | . . . . . . . . . . . . . . . . . . . . . . Time . | . . . . . . . . . . . . . . . . . . . . . . Total Part Build Rating . | . . . . . . . . . . . . . . . . . . . . . . Part Studies Acquired 3 | . . . . . 1 . . . . . . . . . 2 . . . . . . Parts Repaired 2 | . . . . . . . . . . 2 . . . . . . . . . . . Time 100 | . . . . . . . . . . 100 . . . . . . . . . . . Parts Recycled . | . . . . . . . . . . . . . . . . . . . . . . Recycled Matter . | . . . . . . . . . . . . . . . . . . . . . . Retrieved Matter . | . . . . . . . . . . . . . . . . . . . . . . Retrieved Components . | . . . . . . . . . . . . . . . . . . . . . . Parts Scanalyzed . | . . . . . . . . . . . . . . . . . . . . . . Part Schematics Acquired . | . . . . . . . . . . . . . . . . . . . . . . Parts Damaged . | . . . . . . . . . . . . . . . . . . . . . . Bothacking | -11 -10 -10 -10 -8 -6 -6 -5 -5 -5 -4 -4 -4 -4 -3 -3 -3 -3 -2 -2 -1 -1 ------------ Run | Yrd Mat Min Sub Scr Fac Ext Fac Upp Upp Fac Upp Upp Zhi Pro Res Qua Frg Res Tes Acc Com Used RIF Installer . | . . . . . . . . . . . . . . . . . . . . . . Robots Hacked . | . . . . . . . . . . . . . . . . . . . . . . Non-combat . | . . . . . . . . . . . . . . . . . . . . . . Combat . | . . . . . . . . . . . . . . . . . . . . . . Robot Hacks Applied . | . . . . . . . . . . . . . . . . . . . . . . Relay Couplers Released 4 | . . . . . . . . . . . . . . . . . 4 . . . . Programmers 4 | . . . . . . . . . . . . . . . . . 4 . . . . Fabnet Peak Effective % . | . . . . . . . . . . . . . . . . . . . . . . Robots Rewired 13 | . . . . . . 10 . . . . . . . . . . 1 . . . 2 Allies Hacked 2 | . . . . . . . 1 . . . . . . . . . . . . . 1 Hacks Repelled . | . . . . . . . . . . . . . . . . . . . . . . Allies | -11 -10 -10 -10 -8 -6 -6 -5 -5 -5 -4 -4 -4 -4 -3 -3 -3 -3 -2 -2 -1 -1 -------- Run | Yrd Mat Min Sub Scr Fac Ext Fac Upp Upp Fac Upp Upp Zhi Pro Res Qua Frg Res Tes Acc Com Total Allies 23 | . . 2 . . . 13 . . . . . . . . . . 1 5 . . 2 Largest Group 6 | . . 2 2 1 . 6 2 . . . . . . . . . 1 5 . . 1 Highest-Rated Group 320 | . . 38 38 31 . 153 59 . . . . . . . . . 116 320 . . 219 Highest-Rated Ally 219 | . . 31 31 31 . 39 39 . . . . . . . . . 116 64 . . 219 Total Orders 3 | . . . . . . . . . . 2 1 . . . . . . . . . . EXPLORE 2 | . . . . . . . . . . 1 1 . . . . . . . . . . RETURN 1 | . . . . . . . . . . 1 . . . . . . . . . . . Ally Attacks 110 | . . . 13 . . 46 8 . . . . . . . . . 9 22 . . 12 Total Damage 2881 | . . . 230 . . 951 78 . . . . . . . . . 197 637 . . 788 Kills 21 | . . . 3 . . 8 1 . . . . . . . . . . 2 . . 7 Allies Corrupted 1 | . . . . . . . . . . . . . . . . . . . . . 1 Allies Melted . | . . . . . . . . . . . . . . . . . . . . . . Intel | -11 -10 -10 -10 -8 -6 -6 -5 -5 -5 -4 -4 -4 -4 -3 -3 -3 -3 -2 -2 -1 -1 ------- Run | Yrd Mat Min Sub Scr Fac Ext Fac Upp Upp Fac Upp Upp Zhi Pro Res Qua Frg Res Tes Acc Com Active Infowar (turns) 8854 | . . . . 767 740 485 536 1 . 156 748 703 245 581 848 1873 1168 3 . . . Optics 365 | . . . . . 365 . . . . . . . . . . . . . . . . Sensors 5459 | . . . . . 311 380 536 . . 156 748 703 245 581 848 951 . . . . . Structural 1781 | . . . . 767 645 369 . . . . . . . . . . . . . . . T.N.C. 1 | . . . . . . . . . . . . . . . . . . 1 . . . Cloaking 1 | . . . . . . . . . . . . . . . . . . 1 . . . Jamming 3869 | . . . . . . . . . . . . . . . 828 1873 1168 . . . . ECM 2 | . . . . . . . . 1 . . . . . . . . . 1 . . . Robot Analysis Total 9 | . . . . 5 . . . . . . . . 4 . . . . . . . . Derelict Logs Recovered 7 | . . 1 . 2 . . . 2 1 . 1 . . . . . . . . . . Drone Launches 4 | . . . . . . . . . . 1 3 . . . . . . . . . . Drone Recoveries 2 | . . . . . . . . . . 1 1 . . . . . . . . . . Exploration | -11 -10 -10 -10 -8 -6 -6 -5 -5 -5 -4 -4 -4 -4 -3 -3 -3 -3 -2 -2 -1 -1 ------------- Run | Yrd Mat Min Sub Scr Fac Ext Fac Upp Upp Fac Upp Upp Zhi Pro Res Qua Frg Res Tes Acc Com Turns Passed 19513 | 59 231 303 775 2489 772 1411 738 358 80 604 748 703 245 581 848 2874 1450 700 1634 500 1410 Spaces Moved 11483 | 36 99 121 285 1550 778 716 516 267 61 334 360 381 168 463 532 1601 765 440 980 332 698 Core 31 | 6 . . . 23 . . . . . . . . . . . . . . . . 2 Treads 1081 | 30 99 121 285 546 . . . . . . . . . . . . . . . . . Legs 8147 | . . . . . . 251 516 267 61 334 360 381 168 463 532 1601 765 440 980 332 696 Wheels . | . . . . . . . . . . . . . . . . . . . . . . Hover 2224 | . . . . 981 778 465 . . . . . . . . . . . . . . . Flight . | . . . . . . . . . . . . . . . . . . . . . . Fastest Speed 50 | 50 160 240 240 50 53 53 120 120 120 120 120 120 120 120 101 107 107 111 110 117 50 Average Speed 122 | 141 221 240 240 158 73 89 120 120 120 120 120 120 120 120 109 110 118 112 120 117 117 Slowest Speed 260 | 160 240 240 240 240 131 260 120 120 120 120 120 120 120 120 166 175 120 115 157 117 183 Overloaded Moves . | . . . . . . . . . . . . . . . . . . . . . . Propulsion Burnouts . | . . . . . . . . . . . . . . . . . . . . . . Robots Hopped . | . . . . . . . . . . . . . . . . . . . . . . Potential Cave-ins 18 | . . . . . . 7 . . . . . . . . . . 9 . . . 2 Cave-ins Triggered 5 | . . . . . . 1 . . 1 . . . . . . . 2 . . . 1 Teleports 4 | . . . . . . . . . . . . . . . . 2 2 . . . . Exploration Rate (%) 39 | 3 21 29 37 80 20 63 16 44 16 14 68 53 60 71 18 95 18 11 92 11 28 Regions Visited 21 Branch Regions 14 Pre-discovered Areas 10 | . . . . 6 . 1 . . . . . . 3 . . . . . . . . Known Exits Taken 13 | . . . . . 1 1 1 1 1 1 1 1 1 1 1 . 1 1 . . . Unknown Exits Taken 8 | 1 1 1 1 1 . . . . . . . . . . . 1 . . 1 1 . Scrap Searched 16 | . . . . 9 . . . 1 . . 3 2 . 1 . . . . . . . Spaces Dug 102 | . . . . . 8 8 7 2 2 9 3 . . . 3 34 15 2 6 1 2 Terrain Destroyed 1011 | . . . . . 8 12 7 2 2 9 14 . . . 3 34 26 2 6 30 856 Melee 94 | . . . . . 8 1 7 2 2 9 3 . . . 3 34 14 2 6 1 2 Projectile 17 | . . . . . . 11 . . . . . . . . . . 6 . . . . AOE 900 | . . . . . . . . . . . 11 . . . . . 6 . . 29 854 Terrain Rammed . | . . . . . . . . . . . . . . . . . . . . . . Walls Destroyed . | . . . . . . . . . . . . . . . . . . . . . . Machines Disabled . | . . . . . . . . . . . . . . . . . . . . . . Actions | -11 -10 -10 -10 -8 -6 -6 -5 -5 -5 -4 -4 -4 -4 -3 -3 -3 -3 -2 -2 -1 -1 --------- Run | Yrd Mat Min Sub Scr Fac Ext Fac Upp Upp Fac Upp Upp Zhi Pro Res Qua Frg Res Tes Acc Com Total 15920 | 41 111 131 361 1579 938 1328 619 305 65 529 660 606 206 484 725 2528 1202 600 1352 422 1128 Wait 2565 | . . 7 66 1 90 342 68 14 2 161 241 192 12 11 45 645 223 76 214 41 114 Move 11457 | 35 98 120 284 1549 777 714 515 266 60 333 359 380 167 462 531 1599 763 439 978 331 697 Hop . | . . . . . . . . . . . . . . . . . . . . . . Pick Up 172 | . 9 2 3 16 14 13 7 5 . 7 9 4 2 1 18 25 5 7 5 2 18 Fast Attach 155 | 6 2 . . 5 4 13 2 3 . 3 . . 8 2 10 32 19 12 15 3 16 Attach 112 | . . . . 4 4 11 4 2 . 4 3 4 . . 11 20 9 4 4 6 22 Detach 31 | . 1 . . 2 . 5 . . . . 2 . . . . 9 4 . 2 3 3 Swap 55 | . 1 . . . 8 9 2 3 . . 2 1 2 . 11 6 2 . 4 2 2 Drop 201 | . . . . 2 11 16 4 10 . 4 9 1 9 3 18 38 14 11 24 4 23 Fire 41 | . . 2 8 . . 13 . . . . 6 . . . . 1 8 . 1 1 1 Melee 982 | . . . . . 30 101 17 2 3 17 29 23 6 5 78 136 138 51 103 29 214 Ram . | . . . . . . . . . . . . . . . . . . . . . . Kick 1 | . . . . . . . . . . . . . . . . . . . . . 1 Crush . | . . . . . . . . . . . . . . . . . . . . . . Escape Stasis 23 | . . . . . . 18 . . . . . . . . . 1 1 . 2 . 1 Rewire 108 | . . . . . . 73 . . . . . . . . 3 . 16 . . . 16 Trap . | . . . . . . . . . . . . . . . . . . . . . . Miscellaneous 17 | . . . . . . . . . . . . 1 . . . 16 . . . . . Route ------- -11/Scrapyard -10/Materials -10/Mines (discovered 3 exits: [*Mat] / [*Exi] / [*Sub]) -10/Subcaves (discovered 2 exits: [*Mat] / *Scr) -8/Scraptown (discovered 2 exits: *Fac x2) -6/Factory (discovered 5 exits: Fac x2 / [*Low] / *Ext x2) -6/Extension (discovered 2 exits: *Fac / [*Cet]) -5/Factory (discovered 2 exits: *Upp x2) -5/Upper Caves -5/Upper Caves (discovered 2 exits: *Fac / War) -4/Factory -4/Upper Caves -4/Upper Caves -4/Zhirov -3/Proximity Caves -3/Research (discovered 5 exits: Res x2 / Arm / *Qua x2) -3/Quarantine (discovered 3 exits: *Res / [*Sec] / [*Frg]) -3/Protoforge -2/Research (discovered 2 exits: *Tes x2) -2/Testing -1/Access -1/Command History --------- Turn | Location | Event 4 | -11/Scrapyard | Discovered new exit (range 15) 60 | -11/Scrapyard | Entered Materials 199 | -10/Materials | Met 8R-AWN 233 | -10/Materials | Discovered new exit (range 10) 291 | -10/Materials | Entered Mines 294 | -10/Mines | Followed 8R-AWN into the Mines 303 | -10/Mines | Build established: Mutant 333 | -10/Mines | Assembled infested the area 338 | -10/Mines | Assisted by a Guerilla fighting off Assembled 400 | -10/Mines | Discovered new exit (range 11) 439 | -10/Mines | Discovered new exit (range 5) 537 | -10/Mines | Learned 2 Materials zone layouts 581 | -10/Mines | Discovered new exit (range 5) 594 | -10/Mines | Entered Subcaves 594 | -10/Subcaves | Accompanied by 2 allies 595 | -10/Subcaves | Approached by a straggling Scientist 599 | -10/Subcaves | Led the pair of lost Derelicts to an unsafe place 1017 | -10/Subcaves | A swath of the cavern ceiling suddenly collapsed 1078 | -10/Subcaves | Discovered new exit (range 5) 1258 | -10/Subcaves | Scientist uncovered a shortcut to Scraptown 1369 | -10/Subcaves | Entered Scraptown 1369 | -8/Scraptown | Accompanied by 1 ally 1399 | -8/Scraptown | Led the pair of lost Derelicts to a safe place 1545 | -8/Scraptown | Visited UFD Registry 1545 | -8/Scraptown | Registered with UFD as "Quantumframe" 1629 | -8/Scraptown | Visited Cartography Club 1739 | -8/Scraptown | Visited Sword Containment 1813 | -8/Scraptown | Visited Analyses Database 1864 | -8/Scraptown | Visited Derelict Rescue Squad 1878 | -8/Scraptown | Found DRS Beacon 1927 | -8/Scraptown | Visited Scrapoid Pod Storage 2323 | -8/Scraptown | Scanned Subdweller tech in exchange for log data 2330 | -8/Scraptown | Learned location of Armory (-3) 2431 | -8/Scraptown | Visited Bundlers 2681 | -8/Scraptown | Released all parts (7) 2740 | -8/Scraptown | Learned location of Recycling (-8) 2740 | -8/Scraptown | Learned location of Upper Caves (-4) 2740 | -8/Scraptown | Learned location of Extension (-6) 2740 | -8/Scraptown | Learned location of Cetus (-6) 2740 | -8/Scraptown | Learned 12 Materials zone layouts 2740 | -8/Scraptown | Learned 20 Factory zone layouts 2740 | -8/Scraptown | Learned 8 Lower Caves zone layouts 2740 | -8/Scraptown | Learned 20 Upper Caves zone layouts 2740 | -8/Scraptown | Learned 20 Proximity Caves zone layouts 2740 | -8/Scraptown | Learned 4 Hub_04(d) zone layouts 2740 | -8/Scraptown | Learned location of 1 exit from Research 2740 | -8/Scraptown | Learned location of 2 exits from Research 2740 | -8/Scraptown | Learned location of 3 exits from Upper Caves 2759 | -8/Scraptown | Found Deep Structural Scanner 2794 | -8/Scraptown | Visited Infowarlord's Domain 2799 | -8/Scraptown | Found Exp. Sensor Array 2816 | -8/Scraptown | Visited DA-N13 Charitable Foundation 2820 | -8/Scraptown | Found DCF Scrap (29 items) 2850 | -8/Scraptown | Found Prototype Slashing Weapon 2850 | -8/Scraptown | Identified Companion Sword 2965 | -8/Scraptown | Visited Supply Room 3130 | -8/Scraptown | Visited SPCMW 3185 | -8/Scraptown | Discovered new exit (range 16) 3578 | -8/Scraptown | Visited CR-KLE's Repair Center 3583 | -8/Scraptown | CR-KLE repaired 3 parts 3773 | -8/Scraptown | Met Optimus 3773 | -8/Scraptown | Accepted into 0bPrime 3853 | -8/Scraptown | Discovered new exit (range 5) 3858 | -8/Scraptown | Entered Factory 3858 | -6/Factory | Evolved 8 slots: Power x1, Propulsion x3, Utility x4 3859 | -6/Factory | Identified exit to Extension 3860 | -6/Factory | Identified exit to Factory 4299 | -6/Factory | Discovered new exit (range 13) 4423 | -6/Factory | Discovered exit to Extension (range 13) 4546 | -6/Factory | Loaded intel: 8 recycling unit locations 4630 | -6/Factory | Entered Extension 4960 | -6/Extension | Rescued a captive Derelict 4996 | -6/Extension | Rescued a captive Derelict 5036 | -6/Extension | Spotted B-75 Beast 5119 | -6/Extension | Lost 6 allies 5228 | -6/Extension | Destroyed B-75 Beast 5237 | -6/Extension | Lost 4 parts (1n3u) 5350 | -6/Extension | Crushed by falling debris 5564 | -6/Extension | Core integrity fell below 50% 5733 | -6/Extension | Loaded intel: 1 recycling unit location 5733 | -6/Extension | Learned location of Protoforge (-3) 5944 | -6/Extension | Build established: Scavenger-Mutant 6021 | -6/Extension | Discovered exit to Factory (range 10) 6022 | -6/Extension | Discovered new exit (range 6) 6041 | -6/Extension | Entered Factory 6041 | -5/Factory | Accompanied by 2 allies 6041 | -5/Factory | Evolved 2 slots: Utility x2 6042 | -5/Factory | Identified exit to Upper Caves 6779 | -5/Factory | Entered Upper Caves 6780 | -5/Upper Caves | Encountered a Warlord checkpoint 6780 | -5/Upper Caves | Identified exit to Upper Caves 6938 | -5/Upper Caves | Learned location of 1 exit from Factory 6945 | -5/Upper Caves | Learned 12 Factory zone layouts 7048 | -5/Upper Caves | Found DCF Scrap (15 items) 7137 | -5/Upper Caves | Entered another Upper Caves area 7138 | -5/Upper Caves | Identified exit to Factory 7138 | -5/Upper Caves | Identified exit to Warlord 7171 | -5/Upper Caves | Attracted the attention of an 0b10 base 7200 | -5/Upper Caves | Crushed by falling debris 7217 | -5/Upper Caves | Entered Factory 7217 | -4/Factory | Evolved 2 slots: Utility x2 7218 | -4/Factory | Identified exit to Upper Caves 7481 | -4/Factory | Repaired Angular Momentum Engine 7532 | -4/Factory | Repaired Flexi-carbon Leg 7587 | -4/Factory | Loaded intel: 8 recycling unit locations 7821 | -4/Factory | Entered Upper Caves 7822 | -4/Upper Caves | Identified exit to Upper Caves 7880 | -4/Upper Caves | Attracted the attention of an 0b10 checkpoint 8359 | -4/Upper Caves | Build established: Derelict-Mutant 8569 | -4/Upper Caves | Entered another Upper Caves area 8590 | -4/Upper Caves | Activated DRS Beacon 8918 | -4/Upper Caves | P-70 Sage assimilated allied XB-GC8(h) 8945 | -4/Upper Caves | Lost 3 allies 8957 | -4/Upper Caves | Lost 3 parts (1p1n1u) 9062 | -4/Upper Caves | Learned Factory trap positions 9062 | -4/Upper Caves | Learned Research stockpile data 9062 | -4/Upper Caves | Learned Armory terminal intel 9062 | -4/Upper Caves | Learned Armory security intel 9215 | -4/Upper Caves | Build established: Mutant 9231 | -4/Upper Caves | Discovered new exit (range 6) 9234 | -4/Upper Caves | Identified exit to Zhirov 9272 | -4/Upper Caves | Entered Zhirov 9272 | -4/Zhirov | Discovered new exit (range 3) 9294 | -4/Zhirov | Met Zhirov 9320 | -4/Zhirov | Learned location of Quarantine (-3) 9320 | -4/Zhirov | Learned location of Testing (-2) 9320 | -4/Zhirov | Learned location of Command (-1) 9328 | -4/Zhirov | Zhirov requested help retrieving the SGEMP Prototype 9349 | -4/Zhirov | Found Alien Artifact 9349 | -4/Zhirov | Identified Integrated Dissipator 9349 | -4/Zhirov | Installed Integrated Dissipator, increased core heat dissipation (+20) 9366 | -4/Zhirov | Found Alien Artifact 9516 | -4/Zhirov | Identified exit to Proximity Caves 9517 | -4/Zhirov | Entered Proximity Caves 9518 | -3/Proximity Caves | Identified exit to Research 9639 | -3/Proximity Caves | Spotted B-86 Titan 9658 | -3/Proximity Caves | Spotter reported a threat 9709 | -3/Proximity Caves | Attracted the attention of an 0b10 checkpoint 9803 | -3/Proximity Caves | Spotter reported a threat 10098 | -3/Proximity Caves | Entered Research 10098 | -3/Research | Evolved 2 slots: Utility x2 10099 | -3/Research | Identified exit to Armory 10100 | -3/Research | Identified exit to Research 10100 | -3/Research | Identified exit to Quarantine 10145 | -3/Research | Found Prototype Device 10145 | -3/Research | Identified Exp. Thermal Defense Suite 10320 | -3/Research | Spotted B-86 Titan 10476 | -3/Research | Build established: Derelict-Mutant 10533 | -3/Research | Found Prototype Processor 10533 | -3/Research | Identified Exp. Targeting Computer 10693 | -3/Research | System corruption reached 10% 10727 | -3/Research | Lost 3 parts (1n1u1w) 10821 | -3/Research | Destroyed 8 combat bots 10846 | -3/Research | Lost 9 parts (1p3n5u) 10877 | -3/Research | Spotted B-86 Titan 10911 | -3/Research | Discovered exit to Quarantine (range 10) 10946 | -3/Research | Entered Quarantine 10967 | -3/Quarantine | Build established: Mutant 11385 | -3/Quarantine | Identified Transdimensional Reconstructor 11385 | -3/Quarantine | Warped through subspace 11450 | -3/Quarantine | Found Alien Reactor 11612 | -3/Quarantine | Identified Matter Drive 11624 | -3/Quarantine | Found Transdimensional Reconstructor 11631 | -3/Quarantine | Found Alien Artifact 11633 | -3/Quarantine | Found Alien Artifact 11635 | -3/Quarantine | Found Alien Artifact 11645 | -3/Quarantine | Found Alien Artifact 11740 | -3/Quarantine | Spotted Alpha 7 11788 | -3/Quarantine | Destroyed Alpha 7 11789 | -3/Quarantine | Forged Quantum Companion 11793 | -3/Quarantine | Found Prototype Processor 11793 | -3/Quarantine | Identified Exp. Target Analyzer 11818 | -3/Quarantine | Found Alien Launcher 11936 | -3/Quarantine | Core integrity fell below 50% 11947 | -3/Quarantine | System corruption reached 30% 11948 | -3/Quarantine | Lost 3 parts (3u) 11991 | -3/Quarantine | Found Alien Artifact 11991 | -3/Quarantine | Identified Phase Armor 12150 | -3/Quarantine | Found Fusion Bomb Launcher 12163 | -3/Quarantine | Discovered exit to Research (range 3) 12182 | -3/Quarantine | Cryocooling Duct disabled 12197 | -3/Quarantine | Ambient heat levels rising (+20) 12197 | -3/Quarantine | Non-combat units ordered to evacuate 12199 | -3/Quarantine | Cryocooling Duct disabled 12214 | -3/Quarantine | Ambient heat levels rising (+20) 12214 | -3/Quarantine | Combat units ordered to evacuate 12314 | -3/Quarantine | Quarantine Guard activated 12352 | -3/Quarantine | Found Alien Artifact 12352 | -3/Quarantine | Identified Dimensional Node Initializer (x2) 12352 | -3/Quarantine | Initialized slip node 12363 | -3/Quarantine | Spotted Quarantine Guard 12405 | -3/Quarantine | Spotted Quarantine Guard 12455 | -3/Quarantine | Spotted Quarantine Guard 12457 | -3/Quarantine | Warped through subspace to slip node 12548 | -3/Quarantine | Spotted Quarantine Guard 12587 | -3/Quarantine | Destroyed Quarantine Guard 12652 | -3/Quarantine | Found Alien Artifact 12652 | -3/Quarantine | Identified Subatomic Replicator 12665 | -3/Quarantine | Forged Prototype Slashing Weapon 12740 | -3/Quarantine | Identified Sigix Terminator 12772 | -3/Quarantine | Spotted Quarantine Guard 12832 | -3/Quarantine | Destroyed Quarantine Guard 12864 | -3/Quarantine | Cryocooling Duct disabled 12869 | -3/Quarantine | Cryocooling Duct disabled 12879 | -3/Quarantine | Ambient heat levels rising (+20) 12884 | -3/Quarantine | Ambient heat levels rising (+20) 12898 | -3/Quarantine | Cryocooling Duct disabled 12913 | -3/Quarantine | Ambient heat levels rising (+20) 13114 | -3/Quarantine | Spotted Quarantine Guard 13128 | -3/Quarantine | Build established: Scavenger-Mutant 13155 | -3/Quarantine | Cryocooling Duct disabled 13170 | -3/Quarantine | Ambient heat levels rising (+20) 13241 | -3/Quarantine | Cryocooling Duct disabled 13256 | -3/Quarantine | Ambient heat levels rising (+20) 13465 | -3/Quarantine | Cryocooling Duct disabled 13480 | -3/Quarantine | Ambient heat levels rising (+20) 13656 | -3/Quarantine | Found Alien Artifact 13813 | -3/Quarantine | Discovered new exit (range 6) 13813 | -3/Quarantine | Discovered new exit (range 6) 13820 | -3/Quarantine | Entered Protoforge 13932 | -3/Protoforge | Spotted Hotshot 13932 | -3/Protoforge | Spotted Hotshot 13932 | -3/Protoforge | Spotted Hotshot 13934 | -3/Protoforge | Superfortress began startup sequence 13967 | -3/Protoforge | Destroyed Hotshot 13971 | -3/Protoforge | Destroyed Hotshot 14022 | -3/Protoforge | Destroyed Hotshot 14182 | -3/Protoforge | Discovered exit to Research (range 16) 14309 | -3/Protoforge | Initialized slip node 14613 | -3/Protoforge | Spotted Overlord 14680 | -3/Protoforge | Destroyed Overlord 14690 | -3/Protoforge | Found Prototype Device 14690 | -3/Protoforge | Identified Exp. Weapon Cycler 14699 | -3/Protoforge | Found Prototype Device 14699 | -3/Protoforge | Identified Exp. Transmission Jammer 14768 | -3/Protoforge | Spotted Decapitator 14769 | -3/Protoforge | Spotted Decapitator 14772 | -3/Protoforge | Spotted Decapitator 14773 | -3/Protoforge | Spotted Decapitator 14780 | -3/Protoforge | Destroyed Decapitator 14786 | -3/Protoforge | Destroyed Decapitator 14786 | -3/Protoforge | Destroyed Decapitator 14790 | -3/Protoforge | Destroyed Decapitator 14795 | -3/Protoforge | Found Prototype Launcher 14795 | -3/Protoforge | Identified Cep. Concussive Dispersal Blaster 14820 | -3/Protoforge | First assault squad dispatched 14824 | -3/Protoforge | Found Prototype Slashing Weapon 14840 | -3/Protoforge | Identified Exp. Terror Saw 14900 | -3/Protoforge | Core integrity fell below 20% 14960 | -3/Protoforge | Spotted B-86 Titan 14974 | -3/Protoforge | Spotted Hotshot 14979 | -3/Protoforge | Rewired B-86 Titan 14982 | -3/Protoforge | Spotted Hotshot 14982 | -3/Protoforge | Spotted Hotshot 14987 | -3/Protoforge | Destroyed Hotshot 14997 | -3/Protoforge | Destroyed Hotshot 15009 | -3/Protoforge | P-80 Master assimilated allied Titan 8a 15010 | -3/Protoforge | Destroyed Hotshot 15016 | -3/Protoforge | Identified Hpw. Transdimensional Reconstructor (x3) 15016 | -3/Protoforge | Warped through subspace to slip node 15229 | -3/Protoforge | Crushed by falling debris 15263 | -3/Protoforge | Crushed by falling debris 15265 | -3/Protoforge | Warped through subspace to slip node 15270 | -3/Protoforge | Entered Research 15270 | -2/Research | Evolved 2 slots: Propulsion x2 15271 | -2/Research | Identified exit to Testing 15770 | -2/Research | First assault squad dispatched 15893 | -2/Research | Scrapoid reinforcements arrived 15893 | -2/Research | Garrison activated, responded to threat 15931 | -2/Research | Lost 5 allies 15970 | -2/Research | Entered Testing 16000 | -2/Testing | Found Prototype Leg 16000 | -2/Testing | Identified Myomer Exoskeleton 16052 | -2/Testing | Found Prototype Device 16052 | -2/Testing | Identified Exp. Shock Absorption System 16460 | -2/Testing | Discovered new exit (range 6) 16530 | -2/Testing | Found Prototype Ballistic Cannon 16530 | -2/Testing | Identified Perforator 16555 | -2/Testing | Spotted PY-6GVKDPE8MV 16610 | -2/Testing | Destroyed PY-6GVKDPE8MV 16613 | -2/Testing | Found Hvy. Reflective Plating 16617 | -2/Testing | Found Prototype Protection 16617 | -2/Testing | Identified Centrium Heavy Armor Plating 16693 | -2/Testing | Found Prototype Device 16693 | -2/Testing | Identified AEGIS Remote Shield 16840 | -2/Testing | Spotted Striker 16956 | -2/Testing | Found Prototype Energy Cannon 16956 | -2/Testing | Identified Cld. Nova Cannon 17412 | -2/Testing | Build established: Mutant 17544 | -2/Testing | System corruption reached 10% 17604 | -2/Testing | Entered Access 17604 | -1/Access | Evolved 2 slots: Power x1, Propulsion x1 17911 | -1/Access | Build established: Scavenger-Mutant 18071 | -1/Access | Identified Terrabomb 18071 | -1/Access | Used Terrabomb 18071 | -1/Access | Spotted B-99 Colossus 18073 | -1/Access | Discovered new exit (range 10) 18104 | -1/Access | Spotted B-99 Colossus 18104 | -1/Access | Entered Command 18403 | -1/Command | Destroyed 7 combat bots 18650 | -1/Command | Found Prototype Device 18650 | -1/Command | Identified Exp. Thermal Shield 18671 | -1/Command | Build established: Mutant 18728 | -1/Command | Spotted B-99 Colossus 18759 | -1/Command | Rewired B-99 Colossus 18938 | -1/Command | Fired Sigix Terminator 18938 | -1/Command | Destroyed Combat Programmer 18938 | -1/Command | Destroyed Combat Programmer 18945 | -1/Command | Spotted M Guard 18945 | -1/Command | Spotted M Guard 18999 | -1/Command | System corruption reached 10% 19007 | -1/Command | Destroyed M Guard 19023 | -1/Command | Destroyed M Guard 19023 | -1/Command | All MAIN.C guards destroyed 19090 | -1/Command | Destroyed 7 combat bots 19104 | -1/Command | First assault squad dispatched 19136 | -1/Command | Crushed by falling debris 19170 | -1/Command | Met MAIN.C 19177 | -1/Command | 0b10 Conduit disabled 19215 | -1/Command | System corruption reached 30% 19297 | -1/Command | Lost 8 parts (2p2n4u) 19318 | -1/Command | Destroyed 7 combat bots 19397 | -1/Command | Destroyed MAIN.C Shell 19399 | -1/Command | MAIN.C activated Command garrisons 19498 | -1/Command | Core integrity fell below 50% 19508 | -1/Command | Core integrity fell below 20% 19514 | -1/Command | Destroyed by MAIN.C with Omega Cannon Last Messages --------------- 19495_ Penetrated by Slug. 19497_ Centrium Leg destroyed. 19497_ Knocked back. 19498_ Penetrated by Slug. 19501_ Redirected attack with Superquantum Companion. 19501_ Knocked back. 19501_ Penetrated by Slug. 19503_ V31BEHK9OSKWG5UFBD3& A| AS24 19504_ Biometal Leg+ destroyed. 19504_ Knocked back. 19507_ Slug penetrates 0b10 Conduit. 19507_ Penetrated by Slug. 19507_ Hcp. Storage Unit destroyed. 19507_ Knocked back. 19511_ Biometal Leg+ destroyed. 19511_ Knocked back. 19511_ Penetrated by Slug. 19512_ K-01 Serf collects debris. 19512_ Slug penetrates Heavy Barrier. Map ----- +----------------------------------------------------+ | ?????????????????????????????????????????????????? | | ?????????????????????????????????????????????????? | | ?????????????????????????????????????????????????? | | ?????????????????????????????????????????????????? | | ?????????????????????????????????????????????????? | | ?????????????????????????????????????????????????? | | ?????????????????????????????????????????????????? | | ?????????????????????????????????????????????????? | | ?????????????????????????????????????????????????? | | ?????????????????????????????????????????????????? | | ?????????????????????????????????????????????????? | | ?????????????????????????????????????????????????# | | ???????????????????????????????????????????????### | | ???????????????????????????##############??????# # | | ??????????????????????"???? """" #??#####"" | | ???????????????????"" ?? "" #??# | | ??????????????????#"""""? "" ####"""""" | | ???????????????????""""""""""" "/ | | ??????????????????#" " """ !! %/ | | ??????????????????#"" """""" *[%["/ | | ??????????????????#"" """""" %! %#######""" | | ??????????????????# " """ h !! !k#??? | | ??????????????????# " !!h= !%[%!#??###"""" | | ??????????????????# " % =*==% *! !"#??? " " | | ??????????????????#"""" " M %!!!=%! " ""#?# " " | | ??????????????????#" @% =%=!%! ""#?# " " | | ??????????????????# ! !**=!!= """"#?# " " | | ??????????????????# % %%!==[[= " #?# " " | | ??????????????????# % %% !%%! " #?# " " | | ??????????????????" % " #?# " " | | ??????????????????" " " #?# " " | | ??????????????????" #??? " " | | ??????????????????# " " " #???? " " | | ??????????????????# " " """""" #????????? | | ??????????????????# """ " " " #????????? | | ??????????????????#######################????????? | | ?????????????????????????????????????????????????? | | ?????????????????????????????????????????????????? | | ?????????????????????????????????????????????????? | | ?????????????????????????????????????????????????? | | ?????????????????????????????????????????????????? | | ?????????????????????????????????????????????????? | | ?????????????????????????????????????????????????? | | ?????????????????????????????????????????????????? | | ?????????????????????????????????????????????????? | | ?????????????????????????????????????????????????? | | ?????????????????????????????????????????????????? | | ?????????????????????????????????????????????????? | | ?????????????????????????????????????????????????? | | ?????????????????????????????????????????????????? | +----------------------------------------------------+ Best States ------------- Heat Dissipation 166 Coolant Potential 120 Energy Generation 65 Energy Capacity 830 Matter Stores 300 Matter Capacity 300 Sight Range 18 Robot Scan Range 20 Terrain Scan Density 10 Jamming Range 22 Cloak Strength 4 Additional Mass Support 12 Corruption Block 20 Armor Coverage 1650 Resistance: KI 25 Resistance: TH 30 Resistance: EM 15 Core Shielding 30 Power Shielding 66 Propulsion Shielding 90 Utility Shielding 90 Weapon Shielding 66 Melee Speed Boost 40 Phase Shifting 15 Evasion (%) 99 Melee Accuracy 22 Core Analysis 6 Recoil Reduction 2 Offensive Hacking 14 Defensive Hacking 12 Item Schematics ----------------- Assault Drone Bay | -4/Zhirov | Free Exp. Heat Sink | -4/Zhirov | Free Exp. Optical Array | -4/Zhirov | Free Imp. Arc Thrower | -4/Zhirov | Free Robot Schematics ------------------ None Fabricated ------------ Nothing Repaired ---------- Angular Momentum Engine | 10% | -4/Factory Flexi-carbon Leg | 29% | -4/Factory Studied --------- Lgt. Deuterium Engine | -6/Factory | Hacked Biometal Leg | -3/Research | Hacked Imp. Thunder Leg | -3/Research | Hacked Alien Tech Used ----------------- Integrated Dissipator Transdimensional Reconstructor Matter Drive Phase Armor Dimensional Node Initializer Subatomic Replicator Sigix Terminator High-powered Transdimensional Reconstructor Terrabomb Achievements -------------- Please No, No That Challenges ------------ None Game ------ Seed InsulatedForceCoupler Manual? 0 Play Time 02:42:53 Cumulative 547.0 hours Start 2025.11.15 @ 10:32:44 End 2025.11.15 @ 14:09:21 Sessions 3 Manual Loads 0 Difficulty Rogue Special Mode None Game No. 884 Rogue 729 Adventurer 148 Explorer 7 Win Type - Total 26 Types 20/1/4/1/0/0/0/0/0/0 Lore% 79 Gallery% 81 Achievement% 66 Wizard Run 0 Options --------- Layout 1 ASCII 0 Keyboard 0 Movement Numpad Keybinds 0 Fullscreen 2 Font 24/Smallcaps Map View 50x40 Zoom Use 0% Tactical HUD 1 Map Filters NONE Filters NONE Steam 1 RUN: b808b287-9949-486d-9e71-bf8e06eaf78d